bitfinex/quotes_BTCUSD_20250316
["timestamp","ask_amount","ask_price","bid_price","bid_amount"]
[1742088604605,0.01857902,84398.0,84397.0,0.13933022]
[1742088606850,0.01857902,84398.0,84397.0,0.01433022]
[1742088607382,0.03042702,84398.0,84397.0,0.01466902]
[1742088608203,0.01857902,84398.0,84397.0,0.01466902]
[1742088611044,0.01857902,84398.0,84397.0,0.10451702]
[1742088611248,0.01857902,84398.0,84397.0,0.09266902]
[1742088611657,0.236955,84405.0,84398.0,0.236972]
[1742088612238,0.236958,84403.0,84398.0,0.236972]
[1742088612842,0.236963,84402.0,84397.0,0.09166902]
[1742088613021,0.236963,84402.0,84397.0,0.08966902]
[1742088614333,0.236963,84402.0,84397.0,0.32664102]
[1742088614334,0.011848,84402.0,84397.0,0.32664102]
[1742088614881,0.01857855,84401.0,84397.0,0.32664102]
[1742088615379,0.01857855,84401.0,84399.0,0.236968]
[1742088616837,0.01857855,84401.0,84399.0,0.237968]
[1742088617272,0.01857855,84401.0,84399.0,0.001]
[1742088617646,0.01857855,84401.0,84399.0,0.237968]
[1742088617829,0.01857855,84401.0,84400.0,0.01176526]
[1742088619325,0.03042655,84401.0,84400.0,0.01176526]
[1742088619577,0.03042655,84401.0,84397.0,0.0003388]
[1742088619578,0.011848,84398.0,84397.0,0.0003388]
[1742088620127,0.011848,84398.0,84397.0,0.0121067]
[1742088620340,0.236966,84400.0,84397.0,0.0121067]
[1742088620341,0.248814,84400.0,84397.0,0.0121067]
[1742088620710,0.24882,84398.0,84397.0,0.0141067]
[1742088622005,0.24882,84398.0,84397.0,0.0151067]
[1742088624894,0.011848,84398.0,84397.0,0.0151067]
[1742088625070,0.24882,84398.0,84397.0,0.0151067]
[1742088625276,0.011848,84399.0,84397.0,0.0151067]
[1742088626133,0.311848,84398.0,84397.0,0.0121067]
[1742088626339,1.311848,84398.0,84397.0,0.0003388]
[1742088626568,1.311848,84398.0,84397.0,0.0023388]
[1742088627429,1.311848,84398.0,84397.0,0.0013388]
[1742088627632,1.15758731,84398.0,84397.0,0.0013388]
[1742088627820,1.15958731,84398.0,84397.0,0.0003388]
[1742088628642,1.16058731,84398.0,84397.0,0.0003388]
[1742088629084,0.33522131,84398.0,84397.0,0.0003388]
[1742088629322,0.45995531,84398.0,84397.0,0.0003388]
[1742088629543,0.33622131,84398.0,84397.0,0.0003388]
[1742088629774,0.60727231,84398.0,84397.0,0.0003388]
[1742088629953,0.54432597,84398.0,84397.0,0.0003388]
[1742088630163,0.82764682,84398.0,84397.0,0.0003388]
[1742088630373,0.82764682,84398.0,84391.0,4.166e-05]
[1742088630374,0.548838,84392.0,84391.0,4.166e-05]
[1742088630587,1.58734885,84392.0,84391.0,4.166e-05]
[1742088630786,1.59507385,84392.0,84391.0,4.166e-05]
[1742088631429,1.57906885,84392.0,84391.0,4.166e-05]
[1742088631635,0.98665485,84392.0,84391.0,4.166e-05]
[1742088632071,0.99065485,84392.0,84391.0,4.166e-05]
[1742088632451,0.99365485,84392.0,84391.0,4.166e-05]
[1742088632900,0.80410185,84392.0,84391.0,4.166e-05]
[1742088634338,0.81295604,84392.0,84391.0,4.166e-05]
[1742088634470,0.56469219,84392.0,84391.0,4.166e-05]
[1742088636222,0.555838,84392.0,84391.0,4.166e-05]
[1742088649244,0.57442061,84392.0,84391.0,4.166e-05]
[1742088652609,0.32558261,84392.0,84391.0,4.166e-05]
[1742088652889,0.32558261,84392.0,84391.0,0.08114166]
[1742088653317,0.32558261,84392.0,84391.0,0.09281658]
[1742088653735,0.33343161,84392.0,84391.0,0.09281658]
[1742088653940,0.33143161,84392.0,84391.0,4.166e-05]
[1742088654145,0.33243161,84392.0,84391.0,4.166e-05]
[1742088656706,0.33277061,84392.0,84391.0,4.166e-05]
[1742088664845,0.33277061,84392.0,84391.0,0.01171613]
[1742088665046,0.33277061,84392.0,84391.0,4.166e-05]
[1742088665247,0.33277061,84392.0,84391.0,0.01171613]
[1742088665449,0.33277061,84392.0,84391.0,4.166e-05]
[1742088665657,0.33277061,84392.0,84391.0,0.01171613]
[1742088665857,0.33277061,84392.0,84391.0,4.166e-05]
[1742088666075,0.33277061,84392.0,84391.0,0.01171613]
[1742088666277,0.33277061,84392.0,84391.0,4.166e-05]
[1742088666482,0.33277061,84392.0,84391.0,0.01171613]
[1742088666698,0.33277061,84392.0,84391.0,4.166e-05]
[1742088666916,0.33277061,84392.0,84391.0,0.01171613]
[1742088673637,0.33277061,84392.0,84391.0,4.166e-05]
[1742088682652,0.248867,84382.0,84381.0,0.02784986]
[1742088683002,0.248867,84382.0,84381.0,0.03953608]
[1742088683410,0.26744979,84382.0,84381.0,0.03953608]
[1742088683852,0.26744979,84382.0,84381.0,0.01168622]
[1742088684185,0.26744979,84382.0,84381.0,0.004]
[1742088685927,0.26744979,84382.0,84381.0,0.01568622]
[1742088688724,0.26744979,84382.0,84381.0,0.004]
[1742088689199,0.248867,84382.0,84381.0,0.004]
[1742088689434,0.248867,84382.0,84381.0,0.002]
[1742088689784,0.248867,84382.0,84381.0,0.003]
[1742088689999,0.248867,84382.0,84381.0,0.01468618]
[1742088690209,0.248867,84382.0,84381.0,0.01168618]
[1742088690406,0.237021,84381.0,84376.0,0.0795]
[1742088690637,0.248872,84381.0,84377.0,0.01169075]
[1742088690979,0.237017,84382.0,84377.0,0.24871975]
[1742088691224,0.3,84383.0,84378.0,0.237026]
[1742088691424,0.537016,84383.0,84381.0,0.0001695]
[1742088691628,0.537016,84383.0,84382.0,0.01168504]
[1742088691785,0.31858267,84383.0,84382.0,0.01168504]
[1742088692887,0.01858267,84383.0,84382.0,0.01168504]
[1742088694203,0.01858267,84383.0,84382.0,0.01268504]
[1742088694821,0.01858267,84383.0,84382.0,0.01368504]
[1742088697430,0.01858267,84383.0,84382.0,0.15503504]
[1742088698101,0.000339,84392.0,84391.0,0.316592]
[1742088698487,0.000339,84392.0,84391.0,0.32826678]
[1742088699275,0.001339,84392.0,84391.0,0.34011578]
[1742088699619,0.003339,84392.0,84391.0,0.34011578]
[1742088700414,0.001339,84392.0,84391.0,0.34011578]
[1742088700832,0.01991959,84392.0,84391.0,0.34011578]
[1742088701202,0.01991959,84392.0,84391.0,0.32826678]
[1742088701454,0.01891959,84392.0,84391.0,0.32826678]
[1742088706336,0.01891959,84392.0,84391.0,0.32926678]
[1742088710555,0.01891959,84392.0,84391.0,0.37636678]
[1742088710763,0.01891959,84392.0,84391.0,0.38821578]
[1742088714641,0.01891959,84392.0,84391.0,0.37636678]
[1742088715412,0.01891959,84392.0,84391.0,0.38821578]
[1742088729070,0.01891959,84392.0,84391.0,0.30861578]
[1742088729303,0.01891959,84392.0,84391.0,0.24966678]
[1742088735276,0.011848,84398.0,84391.0,0.24966678]
[1742088735483,0.01858036,84392.0,84391.0,0.24966678]
[1742088735919,0.248822,84398.0,84391.0,0.24966678]
[1742088736121,0.248822,84398.0,84391.0,0.24866678]
[1742088736558,0.250822,84398.0,84391.0,0.24866678]
[1742088737673,0.3,84392.0,84391.0,0.01167478]
[1742088738079,0.3,84392.0,84381.0,0.0001695]
[1742088738080,0.01185,84385.0,84381.0,0.0001695]
[1742088738364,0.3,84382.0,84381.0,0.0001695]
[1742088740312,0.31858276,84382.0,84381.0,0.0001695]
[1742088740517,0.31858276,84382.0,84381.0,0.0031695]
[1742088740892,0.31858276,84382.0,84381.0,0.0061695]
[1742088741095,0.33043276,84382.0,84381.0,0.0031695]
[1742088741866,0.01858276,84382.0,84381.0,0.0031695]
[1742088742115,0.01858276,84382.0,84381.0,0.0061695]
[1742088744727,0.25559976,84382.0,84381.0,0.0061695]
[1742088744932,0.26744976,84382.0,84381.0,0.0061695]
[1742088746733,0.26744976,84382.0,84381.0,0.0031695]
[1742088747199,0.26744976,84382.0,84381.0,0.0001695]
[1742088747559,0.26744976,84382.0,84381.0,0.0011695]
[1742088748031,0.26744976,84382.0,84381.0,0.0021695]
[1742088748428,0.56744976,84382.0,84381.0,0.0021695]
[1742088750751,0.56744976,84382.0,84381.0,0.0011695]
[1742088762485,0.548867,84382.0,84381.0,0.0011695]
[1742088763976,0.548867,84382.0,84381.0,0.0001695]
[1742088764189,0.549867,84382.0,84381.0,0.0001695]
[1742088764722,0.551867,84382.0,84381.0,0.0001695]
[1742088765463,0.57045048,84382.0,84381.0,0.0001695]
[1742088769815,0.57045048,84382.0,84351.0,0.0008]
[1742088769816,0.248947,84355.0,84351.0,0.0008]
[1742088769976,0.248956,84352.0,84351.0,0.0008]
[1742088770187,0.548956,84352.0,84351.0,0.0008]
[1742088770852,0.56183595,84352.0,84351.0,0.0008]
[1742088771185,0.5763768,84352.0,84351.0,0.0008]
[1742088771307,0.5763768,84352.0,84351.0,0.00121559]
[1742088771506,1.61898736,84352.0,84351.0,0.00121559]
[1742088771913,1.61998736,84352.0,84351.0,0.00121559]
[1742088772218,1.61898736,84352.0,84351.0,0.00121559]
[1742088772419,1.5773768,84352.0,84351.0,0.00121559]
[1742088772840,1.5649028,84352.0,84351.0,0.00121559]
[1742088773244,1.4685608,84352.0,84351.0,0.00121559]
[1742088773447,1.48715326,84352.0,84351.0,0.00121559]
[1742088773646,1.48915326,84352.0,84351.0,0.00121559]
[1742088773866,1.48715326,84352.0,84351.0,0.00121559]
[1742088774277,1.45499126,84352.0,84351.0,0.00121559]
[1742088774838,0.60096926,84352.0,84351.0,0.00121559]
[1742088775269,0.60096926,84352.0,84351.0,0.00138499]
[1742088775482,1.11837026,84352.0,84351.0,0.00138499]
[1742088775771,1.00423226,84352.0,84351.0,0.00138499]
[1742088776289,1.01305076,84352.0,84351.0,0.00138499]
[1742088776907,0.627603,84336.0,84335.0,0.001]
[1742088777108,1.17539185,84336.0,84335.0,0.001]
[1742088777334,1.59329185,84336.0,84335.0,0.001]
[1742088777758,1.63590241,84336.0,84335.0,0.001]
[1742088778493,1.64090241,84336.0,84335.0,0.001]
[1742088778628,1.67745589,84336.0,84335.0,0.001]
[1742088779068,1.67445589,84336.0,84335.0,0.001]
[1742088779293,1.73470893,84336.0,84335.0,0.001]
[1742088779694,1.73770893,84336.0,84335.0,0.001]
[1742088780207,1.73570893,84336.0,84335.0,0.001]
[1742088780424,1.77850276,84336.0,84335.0,0.001]
[1742088780640,0.549071,84313.0,84311.0,0.0133702]
[1742088780839,0.84614641,84313.0,84311.0,0.0133702]
[1742088781043,0.32640085,84312.0,84311.0,0.0085397]
[1742088781243,0.32640085,84312.0,84303.0,0.00182679]
[1742088781244,0.549089,84307.0,84303.0,0.00182679]
[1742088781445,0.311861,84304.0,84303.0,0.00182679]
[1742088781644,0.863561,84304.0,84303.0,0.00182679]
[1742088781846,1.48310985,84304.0,84303.0,0.00182679]
[1742088782139,1.59908385,84304.0,84303.0,0.00182679]
[1742088782336,1.46528385,84304.0,84303.0,0.00182679]
[1742088782546,1.62235496,84304.0,84303.0,0.00182679]
[1742088782984,1.62231496,84304.0,84303.0,0.00182679]
[1742088783384,1.71381783,84304.0,84303.0,0.00182679]
[1742088783589,1.62231496,84304.0,84303.0,0.00182679]
[1742088784145,1.38677296,84304.0,84303.0,0.00182679]
[1742088784341,0.76957296,84304.0,84303.0,0.00182679]
[1742088784664,0.77057296,84304.0,84303.0,0.00182679]
[1742088784863,0.32927111,84304.0,84303.0,0.00182679]
[1742088785043,0.32627111,84304.0,84303.0,0.00182679]
[1742088785251,0.35267296,84304.0,84303.0,0.00182679]
[1742088785465,0.31954085,84304.0,84303.0,0.00182679]
[1742088785662,0.31654085,84304.0,84303.0,0.00182679]
[1742088785875,0.32154085,84304.0,84303.0,0.0118303]
[1742088786285,0.57063785,84304.0,84303.0,0.0118303]
[1742088786512,0.56563785,84304.0,84303.0,0.0118303]
[1742088786895,0.56363785,84304.0,84303.0,0.0118303]
[1742088787114,0.551097,84304.0,84303.0,0.0118303]
[1742088787276,0.551097,84304.0,84303.0,0.0119999]
[1742088787660,0.549097,84304.0,84303.0,0.00199639]
[1742088787868,0.551097,84304.0,84303.0,0.00199639]
[1742088789029,0.56563785,84304.0,84303.0,0.00199639]
[1742088790155,0.58424004,84304.0,84303.0,0.00199639]
[1742088790551,0.56969919,84304.0,84303.0,0.00199639]
[1742088790766,0.56969919,84304.0,84303.0,0.01385739]
[1742088790767,0.32060219,84304.0,84303.0,0.01385739]
[1742088790964,0.02060219,84304.0,84303.0,0.0238609]
[1742088791168,0.02060219,84304.0,84303.0,0.1046609]
[1742088791985,0.04500404,84304.0,84303.0,0.0119999]
[1742088792137,1.52629802,84304.0,84303.0,0.0119999]
[1742088792340,1.52629802,84304.0,84303.0,0.00199639]
[1742088792587,1.42387074,84304.0,84303.0,0.00199639]
[1742088793202,1.38754452,84304.0,84303.0,0.00199639]
[1742088793403,1.37508752,84304.0,84303.0,0.00199639]
[1742088793603,1.33930052,84304.0,84303.0,0.00199639]
[1742088793804,1.26706352,84304.0,84303.0,0.00199639]
[1742088794384,1.22952304,84304.0,84303.0,0.00199639]
[1742088794590,0.59143304,84304.0,84303.0,0.00199639]
[1742088794807,0.58643304,84304.0,84303.0,0.00199639]
[1742088795072,0.34900404,84304.0,84303.0,0.00199639]
[1742088795276,0.249148,84288.0,84278.0,0.21450939]
[1742088795475,0.249148,84288.0,84279.0,0.01083577]
[1742088795928,0.249148,84288.0,84279.0,0.24813977]
[1742088796105,0.01860271,84286.0,84279.0,0.24813977]
[1742088796306,0.249151,84287.0,84279.0,0.01083577]
[1742088796508,0.249151,84287.0,84278.0,0.22637439]
[1742088796788,0.3,84289.0,84280.0,0.011865]
[1742088796995,0.549144,84289.0,84281.0,0.011865]
[1742088797196,0.237284,84287.0,84281.0,0.01083283]
[1742088797399,0.011864,84288.0,84281.0,0.24813283]
[1742088797545,0.3,84287.0,84281.0,0.01083283]
[1742088798886,0.301,84287.0,84281.0,0.01083283]
[1742088799663,0.55015,84287.0,84281.0,0.01083283]
[1742088800192,0.55015,84287.0,84281.0,0.01100243]
[1742088801035,0.01860275,84286.0,84281.0,0.01100243]
[1742088801155,0.3275543,84286.0,84281.0,0.01100243]
[1742088801366,0.237296,84283.0,84281.0,0.01100243]
[1742088801611,0.311864,84282.0,84281.0,0.01100243]
[1742088801846,0.3,84282.0,84281.0,0.01100243]
[1742088802853,0.3,84283.0,84281.0,0.01100243]
[1742088804411,0.249162,84282.0,84281.0,0.01100243]
[1742088804611,0.249162,84282.0,84281.0,0.0001696]
[1742088805736,0.250162,84282.0,84281.0,0.0001696]
[1742088806155,0.26470285,84282.0,84281.0,0.0001696]
[1742088806352,0.250162,84282.0,84281.0,0.0001696]
[1742088808237,0.001,84282.0,84281.0,0.0001696]
[1742088808409,0.012864,84282.0,84281.0,0.0001696]
[1742088808608,0.012864,84282.0,84281.0,0.01101736]
[1742088808790,0.012864,84282.0,84281.0,0.0001696]
[1742088808992,0.001,84282.0,84281.0,0.0001696]
[1742088809194,0.001,84282.0,84281.0,0.01101736]
[1742088809398,0.001,84282.0,84281.0,0.26018336]
[1742088809618,0.001,84282.0,84281.0,0.01101736]
[1742088810466,0.001,84282.0,84281.0,0.24831836]
[1742088810819,0.01960446,84282.0,84281.0,0.24831836]
[1742088811240,0.01960446,84282.0,84281.0,0.38568336]
[1742088812097,0.01860446,84282.0,84281.0,0.38568336]
[1742088812244,0.01860446,84282.0,84281.0,0.13651736]
[1742088812645,0.01860446,84282.0,84281.0,0.14838236]
[1742088814271,0.01860446,84282.0,84281.0,0.14956879]
[1742088814677,0.01860446,84282.0,84281.0,0.14838236]
[1742088815010,0.01860446,84282.0,84281.0,0.14956861]
[1742088816102,0.01860446,84282.0,84281.0,0.01101736]
[1742088816103,0.56776646,84282.0,84281.0,0.01101736]
[1742088816312,0.549162,84282.0,84281.0,0.01101736]
[1742088817007,0.549162,84282.0,84281.0,0.0001696]
[1742088818768,0.56370285,84282.0,84281.0,0.0001696]
[1742088819575,0.582308,84282.0,84281.0,0.0001696]
[1742088820003,0.583308,84282.0,84281.0,0.0001696]
[1742088825656,0.5836472,84282.0,84281.0,0.0001696]
[1742088826502,0.31994435,84282.0,84281.0,0.2847706]
[1742088826705,0.31994435,84282.0,84281.0,0.0474696]
[1742088826879,0.3013392,84282.0,84281.0,0.0584152]
[1742088827304,0.3013392,84282.0,84281.0,0.2957162]
[1742088827497,0.3003392,84282.0,84281.0,0.2957162]
[1742088829063,0.3189435,84282.0,84281.0,0.2957162]
[1742088829725,0.3189435,84282.0,84281.0,0.2484162]
[1742088832904,0.58264635,84282.0,84281.0,0.0111152]
[1742088833329,0.58264635,84282.0,84281.0,0.0001696]
[1742088837333,0.3,84272.0,84268.0,0.237335]
[1742088837838,0.3,84272.0,84269.0,0.01096412]
[1742088838623,0.30041454,84272.0,84269.0,0.01096412]
[1742088838822,0.00041454,84272.0,84269.0,0.01096412]
[1742088839602,0.00041454,84272.0,84267.0,0.237338]
[1742088839805,0.00041454,84272.0,84270.0,0.01096421]
[1742088840011,0.00041454,84272.0,84269.0,0.237333]
[1742088840200,0.3,84270.0,84267.0,0.237338]
[1742088841003,0.31860622,84270.0,84267.0,0.237338]
[1742088841356,0.01860622,84270.0,84267.0,0.237338]
[1742088841604,0.26780622,84270.0,84266.0,0.0001694]
[1742088841797,0.03047222,84270.0,84266.0,0.0001694]
[1742088841996,0.33047222,84270.0,84266.0,0.0001694]
[1742088842204,0.011866,84269.0,84266.0,0.0001694]
[1742088842412,0.549207,84267.0,84266.0,0.0001694]
[1742088843224,0.56374785,84267.0,84266.0,0.0001694]
[1742088843825,0.58739427,84267.0,84266.0,0.0001694]
[1742088844239,0.58739427,84267.0,84231.0,1e-06]
[1742088844240,0.237439,84232.0,84231.0,1e-06]
[1742088844443,0.237439,84232.0,84211.0,0.237497]
[1742088844444,0.237439,84232.0,84172.0,0.01188]
[1742088844445,0.005,84200.0,84172.0,0.01188]
[1742088844647,0.56895485,84197.0,84196.0,0.7001696]
[1742088844851,0.57395485,84197.0,84196.0,0.7001696]
[1742088845051,0.7229,84197.0,84196.0,0.7001696]
[1742088845260,0.305,84197.0,84196.0,0.9377096]
[1742088845487,0.005,84197.0,84196.0,0.2495866]
[1742088845663,0.02362303,84200.0,84199.0,0.011876]
[1742088845921,0.01862303,84200.0,84199.0,0.011876]
[1742088846356,0.0190368,84200.0,84199.0,0.249408]
[1742088847088,0.0190368,84200.0,84199.0,0.247408]
[1742088847686,0.0200368,84200.0,84199.0,0.247408]
[1742088848125,0.0200368,84200.0,84199.0,0.398248]
[1742088848593,0.00523488,84226.0,84208.0,0.011875]
[1742088848795,0.01862015,84209.0,84208.0,0.010875]
[1742088849111,0.01862015,84209.0,84204.0,0.237517]
[1742088849112,0.311875,84210.0,84199.0,7.375e-05]
[1742088849321,0.4179,84225.0,84196.0,0.0001696]
[1742088849322,0.549414,84197.0,84196.0,3.5e-07]
[1742088849518,0.311876,84197.0,84196.0,5.442e-05]
[1742088849743,0.3,84197.0,84196.0,0.01193142]
[1742088849940,0.01862159,84209.0,84203.0,0.237518]
[1742088850153,0.01862159,84209.0,84208.0,0.001]
[1742088850733,0.011875,84204.0,84196.0,5.442e-05]
[1742088850901,0.01454085,84208.0,84202.0,0.237523]
[1742088851115,0.01454085,84206.0,84199.0,0.23753]
[1742088851275,0.01454085,84204.0,84203.0,0.01266463]
[1742088851479,0.01454085,84199.0,84196.0,5.442e-05]
[1742088851884,0.01454085,84199.0,84196.0,0.00105442]
[1742088852080,0.02641685,84199.0,84196.0,0.00105442]
[1742088852268,0.03316446,84199.0,84196.0,0.23859342]
[1742088852505,0.03316446,84199.0,84197.0,0.012677]
[1742088853751,0.03316446,84199.0,84197.0,0.250213]
[1742088853907,0.03316446,84199.0,84197.0,0.012677]
[1742088854108,0.03316446,84199.0,84197.0,0.014677]
[1742088854326,0.03316446,84199.0,84197.0,0.002]
[1742088854508,0.03316446,84199.0,84198.0,0.01267494]
[1742088855216,0.03316446,84199.0,84196.0,5.442e-05]
[1742088855420,0.03316446,84199.0,84198.0,0.01271704]
[1742088855625,0.03316446,84199.0,84196.0,5.442e-05]
[1742088856503,0.03316446,84199.0,84197.0,0.002]
[1742088856830,0.03316446,84199.0,84196.0,5.442e-05]
[1742088856985,0.03316446,84199.0,84196.0,0.00200042]
[1742088856986,0.33141685,84197.0,84196.0,0.00200042]
[1742088857160,0.33141685,84197.0,84193.0,0.0001696]
[1742088857161,0.011877,84194.0,84193.0,0.0001696]
[1742088857379,0.011877,84192.0,84191.0,0.00030425]
[1742088857602,0.011877,84192.0,84191.0,0.00071802]
[1742088857603,0.44082785,84192.0,84191.0,0.00071802]
[1742088857808,0.32641785,84192.0,84191.0,0.00071802]
[1742088858384,1.31439085,84192.0,84191.0,0.00071802]
[1742088858824,1.31639085,84192.0,84191.0,0.00071802]
[1742088859730,1.73429085,84192.0,84191.0,0.00071802]
[1742088860020,0.74631785,84192.0,84191.0,0.00088782]
[1742088860235,1.76494529,84192.0,84191.0,0.00088782]
[1742088860373,0.90891729,84192.0,84191.0,0.00088782]
[1742088860579,0.76494529,84192.0,84191.0,0.00088782]
[1742088860780,0.43652744,84192.0,84191.0,0.00088782]
[1742088860977,0.43952744,84192.0,84191.0,0.00088782]
[1742088861193,0.44452744,84192.0,84191.0,0.00088782]
[1742088861429,0.45640444,84192.0,84191.0,0.00088782]
[1742088861632,0.44840444,84192.0,84191.0,0.00088782]
[1742088862012,0.44152744,84192.0,84191.0,0.00088782]
[1742088862211,0.44352744,84192.0,84191.0,0.00088782]
[1742088862452,0.02062744,84192.0,84191.0,0.00855953]
[1742088862806,0.03816829,84192.0,84191.0,0.00855953]
[1742088863009,0.58759729,84192.0,84191.0,0.00855953]
[1742088863215,2.00549729,84192.0,84191.0,0.00088782]
[1742088863800,2.00349729,84192.0,84191.0,0.00088782]
[1742088863999,2.00049729,84192.0,84191.0,0.00088782]
[1742088864217,2.00349729,84192.0,84191.0,0.00088782]
[1742088864505,1.60919329,84192.0,84191.0,0.00088782]
[1742088865105,1.65304278,84192.0,84191.0,0.00088782]
[1742088865316,1.58084729,84192.0,84191.0,0.00088782]
[1742088865521,1.19825529,84192.0,84191.0,0.00088782]
[1742088866987,1.13967929,84192.0,84191.0,0.00088782]
[1742088867368,1.12869729,84192.0,84191.0,0.00088782]
[1742088867914,0.01454085,84184.0,84179.0,0.237586]
[1742088868112,0.3,84181.0,84175.0,0.2376]
[1742088868338,0.3,84181.0,84180.0,0.00768544]
[1742088868635,0.01862833,84180.0,84178.0,0.237591]
[1742088869450,0.005,84184.0,84180.0,0.237583]
[1742088870157,0.005,84184.0,84181.0,0.237581]
[1742088870694,0.005,84184.0,84183.0,0.237577]
[1742088871034,0.01454085,84189.0,84183.0,0.237577]
[1742088871335,0.549441,84189.0,84183.0,0.236577]
[1742088871590,0.3,84187.0,84183.0,0.234577]
[1742088871791,0.3,84187.0,84181.0,0.237581]
[1742088871939,0.002,84184.0,84181.0,0.237581]
[1742088872138,0.002,84184.0,84182.0,0.237578]
[1742088872345,0.01454085,84186.0,84152.0,0.0791]
[1742088872559,0.01454085,84186.0,84177.0,0.237594]
[1742088872877,0.31454085,84181.0,84173.0,0.386443]
[1742088873078,0.3,84181.0,84179.0,0.237587]
[1742088873282,0.3,84181.0,84173.0,0.14884]
[1742088873483,0.011879,84180.0,84173.0,0.14884]
[1742088873710,0.24947,84179.0,84174.0,0.237603]
[1742088874083,0.249467,84180.0,84175.0,0.24529098]
[1742088874283,0.3,84181.0,84175.0,0.00769398]
[1742088874536,0.01862861,84178.0,84176.0,0.1486]
[1742088874739,0.01862861,84178.0,84176.0,0.386194]
[1742088874941,0.01862861,84178.0,84177.0,0.00769103]
[1742088875371,0.01862861,84178.0,84176.0,0.386197]
[1742088875550,0.01862861,84178.0,84177.0,0.00769103]
[1742088875984,0.01962861,84178.0,84176.0,0.1486]
[1742088876156,0.01962861,84178.0,84177.0,0.00769103]
[1742088876382,0.01862861,84178.0,84177.0,0.00769103]
[1742088876538,0.01862861,84178.0,84176.0,0.386195]
[1742088876783,0.01862861,84178.0,84177.0,0.00733389]
[1742088876986,0.01862861,84178.0,84176.0,0.1486]
[1742088877356,0.01862861,84178.0,84162.0,0.237636]
[1742088877357,0.011881,84167.0,84162.0,0.237636]
[1742088877557,0.237619,84169.0,84163.0,0.237631]
[1742088877687,0.237609,84172.0,84162.0,0.011881]
[1742088877889,0.249494,84171.0,84165.0,0.237625]
[1742088878100,0.01188,84171.0,84162.0,0.011881]
[1742088878301,0.249473,84177.0,84166.0,0.011881]
[1742088878503,0.01188,84172.0,84163.0,0.011881]
[1742088878711,0.249491,84172.0,84165.0,0.237628]
[1742088878932,0.249491,84172.0,84166.0,0.237623]
[1742088879131,0.01188,84173.0,84168.0,0.237619]
[1742088879539,0.249447,84173.0,84168.0,0.237619]
[1742088880322,0.01862873,84172.0,84168.0,0.237619]
[1742088881246,0.01862873,84172.0,84170.0,0.237613]
[1742088881466,0.01862873,84172.0,84168.0,0.237619]
[1742088882056,0.01862873,84172.0,84170.0,0.237612]
[1742088882256,0.01862873,84172.0,84171.0,0.14108]
[1742088883828,0.01862873,84172.0,84171.0,0.14208]
[1742088884036,0.01862873,84172.0,84171.0,0.1544061]
[1742088884269,0.01862873,84172.0,84171.0,0.91643135]
[1742088884474,0.01862873,84172.0,84171.0,0.91524339]
[1742088885325,0.01862873,84172.0,84171.0,0.91424339]
[1742088885504,0.01862873,84172.0,84171.0,0.91624339]
[1742088885926,0.01862873,84172.0,84171.0,1.05234525]
[1742088886342,0.01862873,84172.0,84171.0,0.09214525]
[1742088886541,0.249488,84172.0,84171.0,0.00934525]
[1742088887072,0.249488,84172.0,84171.0,0.002]
[1742088887417,0.249488,84172.0,84171.0,0.00881928]
[1742088888273,0.01215546,84175.0,84171.0,0.00881928]
[1742088888454,0.01188,84175.0,84171.0,0.00681928]
[1742088888654,0.01188,84175.0,84168.0,0.237618]
[1742088888924,0.01188,84175.0,84172.0,0.00681781]
[1742088889156,0.249482,84175.0,84171.0,0.001]
[1742088889337,0.3,84174.0,84173.0,0.00681633]
[1742088889512,0.3,84174.0,84172.0,0.24442481]
[1742088889715,0.3,84174.0,84173.0,0.00681633]
[1742088890529,0.01862809,84175.0,84173.0,0.24441933]
[1742088892087,0.01862809,84175.0,84173.0,0.00681633]
[1742088892471,0.01862809,84175.0,84173.0,0.237603]
[1742088892678,0.01862809,84175.0,84174.0,0.00681893]
[1742088894794,0.01862809,84175.0,84174.0,0.01869893]
[1742088899706,0.0003396,84187.0,84185.0,0.011878]
[1742088899876,0.0003396,84187.0,84186.0,0.237569]
[1742088900241,0.0003396,84187.0,84186.0,0.24436951]
[1742088901576,0.0023396,84187.0,84186.0,0.24436951]
[1742088901994,0.0043396,84187.0,84186.0,0.24436951]
[1742088902189,0.0063396,84187.0,84186.0,0.24436951]
[1742088902444,0.0023396,84187.0,84186.0,0.24436951]
[1742088902588,0.0003396,84187.0,84186.0,0.24436951]
[1742088902792,0.02196489,84187.0,84186.0,0.25624751]
[1742088903363,0.01896489,84187.0,84186.0,0.00680051]
[1742088903502,0.03084289,84187.0,84186.0,0.00680051]
[1742088903683,0.011878,84184.0,84175.0,0.318698]
[1742088903891,0.011878,84184.0,84176.0,0.14532]
[1742088904096,0.237583,84181.0,84176.0,0.15212408]
[1742088904296,0.237583,84181.0,84177.0,0.14524]
[1742088904496,0.237583,84181.0,84176.0,0.24439908]
[1742088904694,0.011878,84184.0,84178.0,0.24439213]
[1742088904898,0.011878,84184.0,84179.0,0.14516]
[1742088905096,0.237574,84185.0,84180.0,0.237586]
[1742088905510,0.237574,84185.0,84181.0,0.00679671]
[1742088906210,0.3,84182.0,84181.0,0.00679671]
[1742088906411,0.3,84182.0,84179.0,0.14516]
[1742088906412,0.311879,84180.0,84179.0,0.14516]
[1742088906621,0.311879,84180.0,84179.0,0.15196131]
[1742088906852,0.311879,84180.0,84179.0,0.15188131]
[1742088907055,0.311879,84180.0,84179.0,0.00680131]
[1742088907296,0.311879,84180.0,84179.0,0.15180131]
[1742088907504,0.311879,84180.0,84179.0,0.145]
[1742088907677,0.311879,84180.0,84179.0,0.15180131]
[1742088909357,0.311879,84180.0,84179.0,0.15280131]
[1742088910936,0.311879,84180.0,84179.0,0.00780131]
[1742088911137,0.311879,84180.0,84179.0,0.15268131]
[1742088911669,0.311879,84180.0,84179.0,0.00780131]
[1742088915157,0.33050607,84180.0,84179.0,0.00780131]
[1742088917415,0.01862707,84180.0,84179.0,0.00780131]
[1742088920694,0.01896587,84180.0,84179.0,0.00780131]
[1742088924871,0.03084487,84180.0,84179.0,0.00780131]
[1742088925157,0.33084487,84180.0,84179.0,0.00780131]
[1742088928513,0.01896587,84180.0,84179.0,0.00780131]
[1742088929621,0.33084487,84180.0,84179.0,0.00780131]
[1742088929792,0.011879,84180.0,84179.0,0.00780131]
[1742088930180,0.03050612,84180.0,84179.0,0.00780131]
[1742088930381,0.011879,84180.0,84179.0,0.00780131]
[1742088930606,0.02641985,84180.0,84179.0,0.00780131]
[1742088930817,0.02641985,84180.0,84179.0,0.001]
[1742088931626,0.01188,84174.0,84173.0,0.0001694]
[1742088931856,0.249483,84174.0,84173.0,0.0001694]
[1742088933249,0.26811149,84174.0,84173.0,0.0001694]